Cogmind - Beta 16.1 @@@ ROGUE MODE // 2026.03.19 @ 12:29:28 // Winter2019/RPGLIKE Player: john Result: Destroyed by DT-RYB(x) with Makeshift Spear Performance ------------- Evolutions (0) 0 Regions Visited (3) 600 Robots Destroyed (17) 85 Value Destroyed (638) 638 Prototype IDs (0) 0 Alien Tech Used (0) 0 Bonus (800) 800 TOTAL SCORE: 2123 Bonus ------- Registered with UFD 300 Met Optimus in HQ 500 Cogmind --------- Core Integrity 0/800 Matter 300/300 Energy 330/330 System Corruption 1% Temperature Hot (214) Movement Walking (110) Location -9/Scraptown Parts ------- > --- POWER (2) -------- Light Deuterium Engine Improved Deuterium Engine > --- PROPULSION (2) --- Aluminum Leg Overtuned Titanium Leg > --- UTILITY (3) ------ Improved Sensor Array Advanced Signal Interpreter Makeshift Light Armor Plating > --- WEAPON (2) ------- Light Cannon Heavy Pick > --- INVENTORY (1) ---- Protomatter-65 Peak State ------------ > --- POWER ------------ Light Deuterium Engine Improved Deuterium Engine > --- PROPULSION ------- Aluminum Leg Overtuned Titanium Leg > --- UTILITY ---------- Improved Sensor Array Advanced Signal Interpreter Makeshift Light Armor Plating > --- WEAPON ----------- Light Cannon Heavy Pick > --- INVENTORY -------- Proton Cannon [Rating: 29] Favorites ----------- Power Light Ion Engine Engine Light Ion Engine Propulsion Aluminum Leg Leg Aluminum Leg Utility Makeshift Light Armor Plating Device Improved Sensor Array Processor Advanced Signal Interpreter Protection Makeshift Light Armor Plating Weapon Particle Cannon Energy Gun Medium Laser Energy Cannon Particle Cannon Ballistic Cannon Light Cannon Piercing Weapon Heavy Pick Build | -11 -10 -10 -9 ------- Run | Yrd Mat Sub Scr Slots Evolved 5 | 4 . 1 . Power 1 | 1 . . . Propulsion 1 | 1 . . . Utility 2 | 1 . 1 . Weapon 1 | 1 . . . Parts Attached 26 | 6 9 2 9 Power 7 | 2 2 . 3 Engine 7 | 2 2 . 3 Core . | . . . . Reactor . | . . . . Propulsion 6 | 2 2 . 2 Treads . | . . . . Leg 6 | 2 2 . 2 Wheel . | . . . . Hover . | . . . . Flight . | . . . . Utility 5 | . 1 2 2 Device 3 | . 1 1 1 Storage . | . . . . Processor 1 | . . . 1 Hackware . | . . . . Protection 1 | . . 1 . Artifact . | . . . . Weapon 8 | 2 4 . 2 Energy Gun 2 | 2 . . . Energy Cannon 4 | . 4 . . Ballistic Gun . | . . . . Ballistic Cannon 1 | . . . 1 Launcher . | . . . . Special Weapon . | . . . . Impact Weapon . | . . . . Slashing Weapon . | . . . . Piercing Weapon 1 | . . . 1 Special Melee Weapon . | . . . . Unidentified Prototypes . | . . . . Parts Lost . | . . . . Power . | . . . . Propulsion . | . . . . Utility . | . . . . Weapon . | . . . . Highest Loss Streak . | . . . . To Critical Strikes . | . . . . Average Backups . | . 1 . . Power . | . . . . Propulsion . | . . . . Utility . | . . . . Weapon . | . 1 . . Tool/Special . | . . . . Unused Backups 3 | . 1 . 2 Power . | . . . . Propulsion . | . . . . Utility . | . . . . Weapon 3 | . 1 . 2 Tool/Special . | . . . . Average Slot Usage (%) 95 | . 83 96 99 Engine 22 | . 25 22 21 Leg 22 | . 25 22 22 Device 12 | . 8 20 12 Processor 6 | . . . 9 Protection 8 | . . 9 11 Energy Cannon 11 | . 24 22 6 Ballistic Cannon 6 | . . . 9 Piercing Weapon 4 | . . . 6 Peak Build Rating 29 | 6 9 15 29 Average Rating 17 | 4 8 14 20 On Entrance 7 | . 6 9 15 Avg Prop Armor Cover (%) 7 | . 7 . . Naked Turns . | . . . . Heaviest Build 26 | 10 17 23 26 Greatest Support 29 | 20 20 20 29 Greatest Overweight (x) 1 | 1 1 1 1 Average Overweight (x) . | . . . . Largest Inventory Capacity 1 | 1 1 1 1 Average Capacity 1 | 1 1 1 1 Most Carried 1 | 1 1 1 1 Average Carried . | . . . . Final Capacity 1 | 1 1 1 1 Final Carried 1 | 1 1 1 1 Class Distribution -------------------- 88% | Scavenger-Mutant 11% | Mutant Dominant Class ---------------- Scavenger-Mutant | -10/Materials Scavenger-Mutant | -10/Subcaves Scavenger-Mutant | -9/Scraptown Resources | -11 -10 -10 -9 ----------- Run | Yrd Mat Sub Scr Matter Collected 668 | . 333 35 300 Remotely . | . . . . Salvage Created 793 | . 340 149 304 Parts 47 | . 19 11 17 Haulers Intercepted . | . . . . Recyclers Shooed . | . . . . Parts Field Recycled . | . . . . Retrieved Matter . | . . . . Parts Self-Destructed . | . . . . Prevented . | . . . . Parts Restored . | . . . . Kills | -11 -10 -10 -9 ------- Run | Yrd Mat Sub Scr Combat Hostiles Destroyed 14 | . 5 3 6 Melee 1 | . . . 1 Cannons 12 | . 4 3 5 Classes Destroyed 8 | . 4 1 3 Recycler 1 | . 1 . . Operator 1 | . 1 . . Watcher 1 | . 1 . . Grunt 5 | . 5 . . Subdweller 3 | . . 3 . Federalist 1 | . . . 1 Ranger 1 | . . . 1 Scrapper 3 | . . . 3 Thug 1 | . . . 1 Best Kill Streak 3 | . 2 2 3 Combat Bots Only 3 | . 2 2 3 Max Kills in Single Turn 1 | . 1 1 1 Gunslinging . | . . . . Exploded . | . . . . Melee 1 | . . . 1 Uniques/NPCs Destroyed . | . . . . Combat | -11 -10 -10 -9 -------- Run | Yrd Mat Sub Scr Hostile Shots Fired 153 | . 24 15 114 Missed 44 | . 6 7 31 Hits 109 | . 18 8 83 Melee 1 | . . . 1 Projectile 108 | . 18 8 82 Critical Strikes 6 | . . . 6 Damage Taken 2216 | . 401 197 1618 Core 1756 | . 355 155 1246 Absorbed by Shields . | . . . . Redirected to Core 1195 | . 157 109 929 Core Remaining (%) 100 | 100 . . . Volleys Fired 77 | . 23 9 45 Largest 2 | . 2 2 1 Hottest 136 | . 136 136 30 Shots Fired 107 | . 46 16 45 Gun . | . . . . Cannon 107 | . 46 16 45 Launcher . | . . . . Special . | . . . . Kinetic 45 | . . . 45 Thermal 62 | . 46 16 . Explosive . | . . . . Electromagnetic . | . . . . Robot Hit Streak 11 | . 8 6 11 Robot Miss Streak 3 | . 3 1 3 Penetration Max . | . . . . Secondary Targets . | . . . . Shots Hit Robots 69 | . 25 13 31 Core Hits 28 | . 11 6 11 Critical Kills . | . . . . Critical Parts Destroyed . | . . . . Critical Strikes 2 | . . . 2 Blast 2 | . . . 2 Melee Attacks 3 | . . . 3 Impact . | . . . . Slashing . | . . . . Piercing 3 | . . . 3 Sneak Attacks . | . . . . Combat Hostiles . | . . . . Follow-up Attacks . | . . . . Damage Inflicted 1358 | . 547 264 547 Guns . | . . . . Cannons 1315 | . 533 264 518 Explosions . | . . . . Melee 29 | . . . 29 Ramming 14 | . 14 . . Kinetic 518 | . . . 518 Thermal 797 | . 533 264 . Explosive . | . . . . Electromagnetic . | . . . . Impact . | . . . . Slashing . | . . . . Piercing 29 | . . . 29 Highest Corruption 1 | . . . 1 Average Corruption 1 | . . . 1 Corruption Purged . | . . . . Corruption Blocked . | . . . . Effects 2 | . . . 2 Heat Flow Errors 1 | . . . 1 Data Loss (minor) 1 | . . . 1 Overload Shots . | . . . . Overflow Damage 27 | . 27 . . Projectiles 27 | . 27 . . Explosions . | . . . . Melee . | . . . . Knockbacks 6 | . 1 . 5 Impact 1 | . 1 . . Kinetic 5 | . . . 5 Secondary . | . . . . Self-Inflicted Damage . | . . . . Shots . | . . . . Rammed . | . . . . Targets Rammed 3 | . 3 . . Kicked 3 | . 3 . . Crushed . | . . . . Highest Temperature 824 | . 824 230 311 Average Temperature 192 | . 232 92 167 Received Heat Transfer 1194 | . 156 18 1020 Effects 33 | . 29 3 1 Shutdowns 6 | . 6 . . Energy Bleed 4 | . 3 . 1 Interference 5 | . 2 3 . Matter Decay 2 | . 2 . . Short Circuit 2 | . 2 . . Damage (minor) 1 | . 1 . . Damage (major) 12 | . 12 . . Damage (core) 1 | . 1 . . Siege Activations . | . . . . Martial Activations . | . . . . Shielding Activations . | . . . . Robots Disrupted . | . . . . Combat Hostiles . | . . . . Robots Corrupted . | . . . . Combat Hostiles . | . . . . Parts Fried . | . . . . Impact Corruptions . | . . . . Robots Melted 1 | . 1 . . Combat Hostiles 1 | . 1 . . Parts Melted 6 | . 3 1 2 Heat Transferred 1443 | . 962 481 . Parts Sabotaged . | . . . . Parts Stolen . | . . . . Parts Stripped . | . . . . Power Chain Reactions . | . . . . Alert | -11 -10 -10 -9 ------- Run | Yrd Mat Sub Scr Maximum Alert Level . | . . . . Low Security (%) 100 | 100 100 . . Level 1 . | . . . . Level 2 . | . . . . Level 3 . | . . . . Level 4 . | . . . . Level 5 . | . . . . High Security . | . . . . Max Security . | . . . . Peak Influence 90 | . 90 . . Initial . | . . . . Average 20 | . 21 . . Influence Increases 156 | . 156 . . Destroy 0b10 Robot/C 100 | . 100 . . Destroy 0b10 Robot/NC 15 | . 15 . . Destroy Leader 22 | . 22 . . Successful Hack 3 | . 3 . . Disable Machine 15 | . 15 . . Destroy Structure 1 | . 1 . . Influence Decreases 156 | . 156 . . Time Decay 156 | . 156 . . Squads Dispatched . | . . . . Investigation . | . . . . Extermination . | . . . . Reinforcement . | . . . . Assault . | . . . . Garrison . | . . . . Intercept . | . . . . Searches Triggered . | . . . . Construction Impeded . | . . . . Haulers Reinforced . | . . . . Active Scanning Responses . | . . . . Cargo Convoy Interrupts . | . . . . Stealth | -11 -10 -10 -9 --------- Run | Yrd Mat Sub Scr Distress Signals 1 | . 1 . . Communications Jammed . | . . . . Distress Signals . | . . . . Times Spotted 38 | . 10 3 25 Peak Tracking Total 8 | . 5 2 8 Tactical Retreats 1 | . . . 1 Traps | -11 -10 -10 -9 ------- Run | Yrd Mat Sub Scr Traps Triggered 1 | . . 1 . Indirectly . | . . . . Trap Hack Attempts . | . . . . Triggered . | . . . . Disarmed . | . . . . Reprogrammed . | . . . . Reused . | . . . . Traps Extracted . | . . . . Installed . | . . . . Triggered . | . . . . Machines | -11 -10 -10 -9 ---------- Run | Yrd Mat Sub Scr Machines Disabled 2 | . 1 . 1 Max in Single Turn 1 | . 1 . 1 Machines Repaired . | . . . . Machines Dismantled . | . . . . Machines Sabotaged . | . . . . Overloaded Fab Kills . | . . . . Hacking | -11 -10 -10 -9 --------- Run | Yrd Mat Sub Scr Machines Accessed 7 | . 3 . 4 Terminals 3 | . 3 . . Fabricators . | . . . . Repair Stations . | . . . . Recycling Units . | . . . . Scanalyzers . | . . . . Garrison Access . | . . . . Total Hacks 25 | . 11 . 14 Successful 22 | . 8 . 14 Failed 3 | . 3 . . Catastrophic . | . . . . Database Lockouts . | . . . . Manual . | . . . . Terminals 11 | . 11 . . Fabricators . | . . . . Repair Stations . | . . . . Recycling Units . | . . . . Scanalyzers . | . . . . Garrison Access . | . . . . Terminal Hacks 22 | . 8 . 14 Record 19 | . 5 . 14 Alert Level 1 | . 1 . . Locate Traps 1 | . 1 . . Hauler Manifests 1 | . 1 . . Fabricator Hacks . | . . . . Repair Station Hacks . | . . . . Recycling Unit Hacks . | . . . . Scanalyzer . | . . . . Garrison Access Hacks . | . . . . Unauthorized Hacks . | . . . . Terminals . | . . . . Fabricators . | . . . . Repair Stations . | . . . . Recycling Units . | . . . . Scanalyzers . | . . . . Garrison Access . | . . . . Data Cores Recovered 1 | . 1 . . Used 1 | . 1 . . Hacking Detections 2 | . 2 . . Full Trace Events 1 | . 1 . . Feedback Events . | . . . . Feedback Blocked . | . . . . Robot Schematics Acquired . | . . . . Robots Built . | . . . . Authchips . | . . . . Time . | . . . . Total Robot Build Rating . | . . . . Part Schematics Acquired . | . . . . Parts Built . | . . . . Authchips . | . . . . Time . | . . . . Total Part Build Rating . | . . . . Part Studies Acquired . | . . . . Parts Repaired . | . . . . Time . | . . . . Parts Recycled . | . . . . Recycled Matter . | . . . . Retrieved Matter . | . . . . Retrieved Components . | . . . . Parts Scanalyzed . | . . . . Part Schematics Acquired . | . . . . Parts Damaged . | . . . . Bothacking | -11 -10 -10 -9 ------------ Run | Yrd Mat Sub Scr Used RIF Installer . | . . . . Robots Hacked . | . . . . Non-combat . | . . . . Combat . | . . . . Robot Hacks Applied . | . . . . Relay Couplers Released . | . . . . Fabnet Peak Effective % . | . . . . Robots Rewired . | . . . . Allies Hacked . | . . . . Hacks Repelled . | . . . . Allies | -11 -10 -10 -9 -------- Run | Yrd Mat Sub Scr Total Allies . | . . . . Largest Group . | . . . . Highest-Rated Group . | . . . . Highest-Rated Ally . | . . . . Total Orders . | . . . . Ally Attacks . | . . . . Total Damage . | . . . . Kills . | . . . . Allies Corrupted . | . . . . Allies Melted 9 | . . . 9 Intel | -11 -10 -10 -9 ------- Run | Yrd Mat Sub Scr Active Infowar (turns) 2133 | . . 292 1841 Optics 529 | . . 292 237 Sensors 1604 | . . . 1604 Robot Analysis Total . | . . . . Derelict Logs Recovered . | . . . . Drone Launches . | . . . . Drone Recoveries . | . . . . Exploration | -11 -10 -10 -9 ------------- Run | Yrd Mat Sub Scr Turns Passed 2959 | 38 622 343 1956 Spaces Moved 2007 | 27 399 178 1403 Core 6 | 6 . . . Treads . | . . . . Legs 2001 | 21 399 178 1403 Wheels . | . . . . Hover . | . . . . Flight . | . . . . Fastest Speed 50 | 50 120 120 110 Average Speed 130 | 106 124 174 127 Slowest Speed 190 | 120 190 190 190 Overloaded Moves . | . . . . Propulsion Burnouts . | . . . . Robots Hopped . | . . . . Potential Cave-ins . | . . . . Cave-ins Triggered . | . . . . Exploration Rate (%) 32 | 3 34 15 77 Regions Visited 3 Branch Regions 2 Pre-discovered Areas . | . . . . Known Exits Taken . | . . . . Unknown Exits Taken 3 | 1 1 1 . Scrap Searched 5 | . . 3 2 Spaces Dug 1 | . . . 1 Terrain Destroyed 1 | . . . 1 Melee 1 | . . . 1 Projectile . | . . . . AOE . | . . . . Terrain Rammed . | . . . . Walls Destroyed . | . . . . Machines Disabled . | . . . . Actions | -11 -10 -10 -9 --------- Run | Yrd Mat Sub Scr Total 2225 | 33 480 194 1518 Wait 40 | . 33 4 3 Move 2004 | 26 398 177 1403 Hop . | . . . . Pick Up 5 | 1 1 1 2 Fast Attach 14 | 6 1 2 5 Attach . | . . . . Detach . | . . . . Swap 15 | . 8 . 7 Drop 20 | . 7 1 12 Fire 77 | . 23 9 45 Melee 3 | . . . 3 Ram . | . . . . Kick 3 | . 3 . . Crush . | . . . . Escape Stasis . | . . . . Rewire . | . . . . Trap . | . . . . Miscellaneous 44 | . 6 . 38 Route ------- -11/Scrapyard -10/Materials (discovered 2 exits: [*Min] / [*Sub]) -10/Subcaves -9/Scraptown (discovered 1 exit: [*Fac]) History --------- Turn | Location | Event 1 | -11/Scrapyard | Upgraded with Power slot (x1) 1 | -11/Scrapyard | Upgraded with Propulsion slot (x1) 1 | -11/Scrapyard | Upgraded with Utility slot (x1) 1 | -11/Scrapyard | Upgraded with Weapon slot (x1) 7 | -11/Scrapyard | Discovered new exit (range 16) 39 | -11/Scrapyard | Entered Materials 307 | -10/Materials | Build established: Mutant 429 | -10/Materials | Discovered new exit (range 16) 522 | -10/Materials | Discovered new exit (range 14) 628 | -10/Materials | Build established: Scavenger-Mutant 661 | -10/Materials | Entered Subcaves 662 | -10/Subcaves | Approached by a straggling Scientist 663 | -10/Subcaves | Reached level 2 664 | -10/Subcaves | Upgraded with Utility slot (x1) 966 | -10/Subcaves | Core integrity fell below 50% 970 | -10/Subcaves | Scientist uncovered a shortcut to Scraptown 1004 | -10/Subcaves | Entered Scraptown 1107 | -9/Scraptown | Heard Great Nut preacher, LISTEN AND RECITE! 1497 | -9/Scraptown | Visited Red Mages 1573 | -9/Scraptown | Visited TADAMA 1619 | -9/Scraptown | Visited UFD Registry 1619 | -9/Scraptown | Registered with UFD as "Cryomech" 1847 | -9/Scraptown | Visited Shadow of the Wyrm 1912 | -9/Scraptown | Visited Symbiants 2009 | -9/Scraptown | Discovered new exit (range 11) 2323 | -9/Scraptown | Visited Cyclists 2346 | -9/Scraptown | Entered Cyclist Reading Room 2455 | -9/Scraptown | Visited Botcube Research 2491 | -9/Scraptown | Visited Research Penetration Think Tank 2523 | -9/Scraptown | Visited Curators Association 2599 | -9/Scraptown | Met Optimus 2599 | -9/Scraptown | Accepted into 0bPrime 2688 | -9/Scraptown | Civil war broke out across Scraptown 2745 | -9/Scraptown | Lost 5 allies 2854 | -9/Scraptown | Lost 3 allies 2877 | -9/Scraptown | Optimus destroyed in the chaos of civil war 2899 | -9/Scraptown | Visited Abandonware Association 2914 | -9/Scraptown | Visited DA-N13 Charitable Foundation 2942 | -9/Scraptown | Core integrity fell below 20% 2960 | -9/Scraptown | Destroyed by DT-RYB(x) with Makeshift Spear Last Messages --------------- 02887_ Critical hit (Burn: +50). 02895_ H3-I2F(E) destroyed. 02897_ Critical hit (Burn: +50). 02898_ 1K-9YY(j) heat short circuits Mak. Microdissipator Network. 02898_ Acquired 65 matter. 02914_ Acquired 4 matter. 02918_ XY-141(j) cannibalizes Carbon-fiber Leg to repair Ovr. Titanium Leg. 02923_ Acquired 4 matter. 02926_ JJ-JJ1(j) destroyed. 02929_ Overheating: Energy bleed (-62). 02931_ 4Z-X5X(x) switches sides. 02931_ Critical hit (Burn: +50). 02931_ Acquired 4 matter. 02948_ Critical hit (Burn: +50). 02953_ Dropped Proton Cannon. 02954_ Acquired Protomatter-65. 02957_ XY-141(j) cannibalizes Ovr. Titanium Leg to repair Ovr. Titanium Leg. Map ----- +----------------------------------------------------+ | #???????????????????? % % | | #???????????????????? | | #??????????????????? | | #???????????????????""""""""""""""""""""""" | | #???????????????????""""""?????""""""""""" | | #????????????????###### ######??########" | | #????????????????# ##????????#" | | #???????? ??# X"#????????#" | | ###?????? "?# "" "" ##????????#"" | | ""#"#???? "?# "" "" X"#????#?###"" | | """"#???? ""# " " #######!#=#"= | | ""###???#" "" j "" [!%=!%*[%!%* | | ###?????#" *%[ "" "" j=%![*[![!*! | | #########"!%*! ""# " " ######"##!#"! | | %!%/=* ""# "" "" ""#??????###*% | | ===*! ""# "" " ##????????#" | | =[! [= "# X"#????????#"" | | =!! !=% "# ##????????#" | | j %% !=! =%[ "###### ################" | | =! !%* *!%[ """""""""""""""""""""" "" | | %!= %! """""""""" """"" " " | | =! ! !%! * = = % | | = [ = !%=%[ % | | !] = j% ! | | #""""#" [=! =[!!%= [*%===% &% | | #????#" *%!@ = *%= j % %%% | | #????#"""" " !""x""""! " """ " !%" | | #### ####????####### ########### ########### ##= | | #?# #????????# "#?#" #?#" !!% | | #?# #????????#""" "#?#"" "#?##"" [% | | #?# #????????#""& " #?#"" #??#]" | | #?# #????????#""" ""#?#"" "#??#"" " | | #?# j #????????#"""" ""#?#"" "#?#" % | | #?# #????????#######"####?#""""" ""#?##" " | | #?# #?????????????????????#""""""""#??#!" " | | #?# #?????????????????????##########??#"" " | | #?# #?????????????????????????????????" """ | | ##?# #????????????????????????????????#### "!" # | | ???# #???????????????????????????????????#"###"# | | #### #???????????????????????????????????##???## | | """" #?????????????????????????????????????????? | | """" h #?????????????????????????????????????????? | | "" #?????????????????????????????????????????? | | #?????????????????????????????????????????? | | "" " #?????????????????????????????????????????? | | """" #????????????????j????????????????????????? | | """" #?????????????????????????????????????????? | | #### #?????????????????????????????????????????? | | #### #?????????????????????????????????????????? | | """# #?????????????????????????????????????????? | +----------------------------------------------------+ Best States ------------- Heat Dissipation 35 Energy Generation 25 Energy Capacity 330 Matter Stores 300 Matter Capacity 300 Sight Range 21 Robot Scan Range 27 Terrain Scan Density 10 Armor Coverage 100 Evasion (%) 55 Offensive Hacking 5 Item Schematics ----------------- None Robot Schematics ------------------ None Fabricated ------------ Nothing Repaired ---------- Nothing Studied --------- None Alien Tech Used ----------------- None Achievements -------------- Bob, First Of His Name Civilization 2243 Dynamic Key Link The Feds Nice Directions, Buddy Spot Them First Challenges ------------ None RPGLIKE | -11 -10 -10 -9 --------- Run | Yrd Mat Sub Scr Levels Raised 1 | . . 1 . XP Earned 5575 | 3000 675 1000 900 XP Spent 4455 | 2955 . 1475 25 Upgrades 19 | 10 . 7 2 Power Slot 1 | 1 . . . Propulsion Slot 1 | 1 . . . Utility Slot 2 | 1 . 1 . Weapon Slot 1 | 1 . . . Core Integrity 4 | 3 . . 1 Heat Dissipation 1 | . . . 1 Inventory Capacity 1 | 1 . . . Sensor Range 6 | . . 6 . Ranged Accuracy 1 | 1 . . . Hack Attack % 1 | 1 . . . Protomatter Created 162 | . 79 . 83 Integrity Restored 962 | . 130 . 832 Core 953 | . 130 . 823 Parts 9 | . . . 9 Protomatter Decayed 5703 | . 35 . 5668 Game ------ Seed AmyLove Manual? 1 Play Time 01:11:33 Cumulative 20.0 hours Start 2026.03.18 @ 20:46:52 End 2026.03.19 @ 12:29:28 Sessions 3 Manual Loads 0 Difficulty Rogue Special Mode Winter2019/RPGLIKE Game No. 16 Rogue 13 Adventurer 0 Explorer 3 Win Type - Total 1 Types 0/0/0/1/0/0/0/0/0/0 Lore% 12 Gallery% 18 Achievement% 20 Wizard Run 0 Options --------- Layout 0 ASCII 0 Keyboard 1 Movement Arrows Keybinds 0 Fullscreen 1 Font 20/SmallcapsGlow Map View 66x50 Zoom Use 0% Tactical HUD 1 Map Filters NONE Filters NONE Steam 1 RUN: 219720e6-49d2-4bc7-aa0b-b261ddf9e892